bitfinex/quotes_ETHUSD_20241018
["timestamp","ask_amount","ask_price","bid_price","bid_amount"]
[1729241678877,3.78764,2640.2,2639.9,1.61169927]
[1729241679077,3.78764,2640.2,2640.0,0.98582563]
[1729241679276,3.78764,2640.2,2639.9,1.61169927]
[1729241679575,3.78764,2640.2,2640.0,0.98583154]
[1729241679793,3.78764,2640.2,2639.9,1.61169927]
[1729241680204,3.78764,2640.2,2640.0,0.9858798]
[1729241680412,3.78764,2640.2,2639.9,1.61169927]
[1729241680617,3.78764,2640.2,2640.0,0.98594567]
[1729241680772,3.78764,2640.2,2639.9,1.61169927]
[1729241680974,3.78764,2640.2,2640.0,0.98594502]
[1729241681197,3.78764,2640.2,2639.9,1.61169927]
[1729241681401,3.78764,2640.2,2640.0,0.98595083]
[1729241681620,3.78764,2640.2,2639.9,1.61169927]
[1729241681814,3.78764,2640.2,2640.0,0.98600984]
[1729241682115,3.78764,2640.2,2639.9,1.61169927]
[1729241682318,3.78764,2640.2,2640.0,0.98600123]
[1729241682553,3.78764,2640.2,2639.9,1.61169927]
[1729241682703,3.78764,2640.2,2640.0,0.98608983]
[1729241682902,3.78764,2640.2,2639.9,1.61169927]
[1729241683138,3.78764,2640.2,2640.0,0.98608963]
[1729241683342,3.78764,2640.2,2639.9,1.61169927]
[1729241683652,3.78764,2640.2,2640.0,0.98618084]
[1729241683844,3.78764,2640.2,2639.9,1.61169927]
[1729241683999,3.78764,2640.2,2640.0,0.98619061]
[1729241684201,3.78764,2640.2,2639.9,1.61169927]
[1729241684416,3.78764,2640.2,2640.0,1.77908671]
[1729241684642,3.78764,2640.2,2640.1,0.98618744]
[1729241684845,3.78764,2640.2,2640.1,0.98628273]
[1729241685945,3.78764,2640.2,2640.1,1.0452457]
[1729241689640,3.78764,2640.2,2640.1,0.05896297]
[1729241689851,3.78764,2640.2,2640.1,1.04558902]
[1729241693563,0.8489,2640.5,2640.1,1.04558902]
[1729241693863,3.78732,2640.4,2640.2,2.59832532]
[1729241694062,3.78732,2640.4,2640.3,0.98662605]
[1729241694270,3.78732,2640.4,2640.3,1.04539006]
[1729241694563,3.78712,2640.6,2640.3,1.83775947]
[1729241694721,3.78712,2640.6,2640.4,0.98609619]
[1729241695071,3.78718,2640.5,2640.2,1.61169927]
[1729241695225,3.78718,2640.5,2640.3,0.98613326]
[1729241695565,3.78718,2640.5,2640.2,1.61169927]
[1729241695862,3.78718,2640.5,2640.3,0.98609964]
[1729241696075,3.78718,2640.5,2640.2,1.61169927]
[1729241696226,3.78718,2640.5,2640.3,0.98608953]
[1729241696426,3.78718,2640.5,2640.2,1.61169927]
[1729241696626,3.78712,2640.6,2640.3,0.9860354]
[1729241696948,7.57422,2640.6,2640.2,1.61169927]
[1729241697267,3.7871,2640.6,2640.3,0.98606472]
[1729241697564,7.5742,2640.6,2640.2,1.61169927]
[1729241697752,3.7871,2640.6,2640.3,0.98600391]
[1729241697917,7.57423,2640.6,2640.2,1.61169927]
[1729241698126,3.7871,2640.6,2640.3,0.9860023]
[1729241698324,3.7871,2640.6,2640.2,1.61169927]
[1729241698526,3.7871,2640.6,2640.3,0.98597405]
[1729241698762,3.7871,2640.6,2640.2,5.39923927]
[1729241699062,3.7871,2640.6,2640.3,0.98591856]
[1729241699258,3.7871,2640.6,2640.2,5.39923927]
[1729241699458,4.65837,2640.7,2640.3,0.98591913]
[1729241699666,3.78681,2640.8,2640.3,0.98591913]
[1729241699667,3.78681,2640.8,2640.4,0.98580837]
[1729241699867,7.57367,2640.8,2640.3,4.58033927]
[1729241700037,3.78681,2640.8,2640.4,0.98576015]
[1729241700245,3.78681,2640.8,2640.3,8.36768927]
[1729241700525,4.64143,2640.9,2640.5,0.8184]
[1729241700771,4.64143,2640.9,2640.6,0.05834507]
[1729241701523,3.78677,2640.8,2640.6,0.05834507]
[1729241703871,4.64143,2640.9,2640.6,0.05834507]
[1729241704046,3.78663,2640.9,2640.6,0.05834507]
[1729241705370,3.78646,2641.0,2640.6,0.05834507]
[1729241705770,3.7863,2641.1,2640.7,0.8184]
[1729241705930,11.13564,2641.6,2640.7,0.8184]
[1729241705931,3.78611,2641.3,2640.7,0.8184]
[1729241706125,4.61602,2641.5,2641.0,0.8184]
[1729241706439,4.61602,2641.5,2641.1,0.05786851]
[1729241706639,8.40187,2641.5,2641.1,0.05786851]
[1729241706844,3.78588,2641.4,2641.1,0.05786851]
[1729241707166,3.78581,2641.5,2641.1,0.05786851]
[1729241707363,4.67845,2641.9,2641.2,0.8184]
[1729241707537,3.78538,2641.8,2641.3,3.78599]
[1729241707888,3.78538,2641.8,2641.4,0.05752034]
[1729241708460,0.8932,2641.9,2641.4,0.05752034]
[1729241708706,3.78552,2641.7,2641.4,0.05752034]
[1729241708842,3.78552,2641.7,2641.2,4.60448]
[1729241709047,3.78552,2641.7,2641.5,0.05736806]
[1729241709257,3.78552,2641.7,2641.2,4.60448]
[1729241709470,3.78552,2641.7,2641.6,0.05728631]
[1729241709657,3.78552,2641.7,2641.2,4.60448]
[1729241709868,3.78552,2641.7,2641.6,0.05728631]
[1729241710091,3.78552,2641.7,2641.2,4.60448]
[1729241710283,3.78552,2641.7,2641.6,0.05728631]
[1729241710576,4.67838,2641.9,2641.6,0.05689244]
[1729241710948,3.78533,2641.8,2641.3,3.78592]
[1729241711150,3.78533,2641.8,2641.4,0.05705594]
[1729241711577,4.67838,2641.9,2641.4,0.05705594]
[1729241712080,3.78541,2641.8,2641.4,0.05705594]
[1729241712375,4.67838,2641.9,2641.4,0.05705594]
[1729241712938,3.7853,2641.8,2641.4,0.05705594]
[1729241713480,4.67838,2641.9,2641.4,0.05705594]
[1729241714038,8.46362,2641.9,2641.4,0.05705594]
[1729241714259,4.67838,2641.9,2641.4,0.05705594]
[1729241714459,3.78531,2641.8,2641.4,0.05705594]
[1729241715461,3.7854,2641.8,2641.4,0.05705594]
[1729241716070,3.78543,2641.8,2641.4,0.05705594]
[1729241716274,4.67838,2641.9,2641.4,0.05705594]
[1729241716275,3.78546,2641.7,2641.4,0.05705594]
[1729241716442,3.78546,2641.7,2641.2,0.8184]
[1729241716642,3.78546,2641.7,2641.5,0.05697419]
[1729241716843,3.78546,2641.7,2641.2,4.60455]
[1729241717070,3.78546,2641.7,2641.6,0.05689244]
[1729241717540,3.78546,2641.7,2641.2,4.60455]
[1729241717742,3.78546,2641.7,2641.3,0.05713769]
[1729241717955,3.78546,2641.7,2641.2,4.60455]
[1729241718157,3.78546,2641.7,2641.3,0.05711713]
[1729241718358,3.78543,2641.8,2641.3,3.78599]
[1729241718579,4.67844,2641.9,2641.4,0.05703537]
[1729241718792,3.78529,2641.8,2641.4,0.05703537]
[1729241718990,3.78529,2641.8,2641.3,3.78594]
[1729241719289,3.78529,2641.8,2641.5,0.05695362]
[1729241719459,3.78529,2641.8,2641.4,0.05703537]
[1729241719661,3.78544,2641.7,2641.6,0.05687188]
[1729241719888,3.78544,2641.7,2641.5,0.05695362]
[1729241720050,3.78544,2641.7,2641.6,0.05687188]
[1729241720561,3.7854,2641.8,2641.6,0.05687188]
[1729241720775,3.7854,2641.8,2641.3,3.78593]
[1729241720949,3.7854,2641.8,2641.4,0.05703537]
[1729241721349,3.7854,2641.8,2641.2,8.39052]
[1729241721545,4.67844,2641.9,2641.3,0.05711713]
[1729241721800,3.78545,2641.7,2641.3,0.05711713]
[1729241722172,3.78545,2641.7,2641.2,4.60445]
[1729241722374,3.78545,2641.7,2641.3,0.05711713]
[1729241722575,3.78545,2641.7,2641.2,4.60445]
[1729241722891,3.78545,2641.7,2641.3,0.05711713]
[1729241723250,3.78545,2641.7,2641.2,4.60445]
[1729241723488,3.78545,2641.7,2641.4,0.0570148]
[1729241723736,0.846389,2641.7,2641.3,0.05709656]
[1729241723894,3.78666,2640.9,2640.6,3.0168598]
[1729241724076,3.78687,2640.7,2640.6,3.0168598]
[1729241724458,3.78687,2640.7,2640.3,0.8184]
[1729241724671,3.78674,2640.8,2640.3,0.8184]
[1729241724870,3.78666,2640.9,2640.4,3.7873]
[1729241725069,3.78636,2641.1,2640.3,0.8184]
[1729241725270,3.78636,2641.1,2640.7,0.8181]
[1729241725592,4.61855,2641.2,2640.7,4.60497]
[1729241725961,3.7863,2641.1,2640.7,0.8181]
[1729241726155,0.8323,2641.2,2640.7,0.8181]
[1729241726489,3.7863,2641.1,2640.7,0.8181]
[1729241727877,3.78649,2641.0,2640.7,0.8181]
[1729241728707,3.7867,2640.9,2640.5,0.8181]
[1729241728994,3.7867,2640.9,2640.2,3.78755]
[1729241728995,3.78688,2640.7,2640.3,0.8181]
[1729241729165,7.57384,2640.7,2640.3,0.8181]
[1729241729912,3.78688,2640.7,2640.3,0.8181]
[1729241730079,3.78704,2640.6,2640.1,0.8181]
[1729241730609,3.78716,2640.5,2640.1,0.8181]
[1729241730765,3.78738,2640.4,2640.2,0.04899094]
[1729241731599,3.78716,2640.5,2640.2,0.04899094]
[1729241731794,3.78695,2640.7,2640.2,0.04899094]
[1729241732013,3.78724,2640.5,2640.2,0.04899094]
[1729241732169,3.78715,2640.6,2640.2,0.04899094]
[1729241732918,3.7871,2640.6,2640.2,0.04899094]
[1729241734506,3.78724,2640.5,2640.2,0.04899094]
[1729241736280,3.7871,2640.6,2640.2,0.04899094]
[1729241736526,3.78709,2640.6,2640.2,0.04899094]
[1729241738219,7.57423,2640.6,2640.2,0.04899094]
[1729241738582,3.78716,2640.5,2640.2,0.04899094]
[1729241739285,3.7874,2640.4,2640.2,0.04899094]
[1729241739488,4.62934,2640.3,2640.2,0.04899094]
[1729241739800,4.62934,2640.3,2640.0,23.0]
[1729241739801,3.78773,2640.1,2640.0,23.0]
[1729241740185,3.78761,2640.2,2640.0,23.0]
[1729241741427,3.78773,2640.2,2640.0,23.0]
[1729241745834,3.78773,2640.2,2640.1,0.04818043]
[1729241747648,4.629437,2640.2,2640.1,0.04818043]
[1729241747954,3.78773,2640.1,2640.0,23.0]
[1729241748116,4.66533,2640.1,2640.0,23.0]
[1729241754942,4.66533,2640.1,2639.2,0.8181]
[1729241754943,3.78852,2639.6,2639.2,0.8181]
[1729241755311,7.57708,2639.6,2639.3,0.04755011]
[1729241755512,3.7886,2639.5,2639.2,0.8181]
[1729241755721,3.7886,2639.5,2639.4,0.04746823]
[1729241755915,3.78852,2639.6,2639.3,0.04755011]
[1729241756103,3.78852,2639.6,2639.4,0.04746823]
[1729241756299,3.78852,2639.6,2639.2,0.8181]
[1729241756528,3.78852,2639.6,2639.5,0.04738636]
[1729241757034,3.78852,2639.6,2639.2,0.8181]
[1729241757235,3.78852,2639.6,2639.5,0.04738636]
[1729241757435,3.78852,2639.6,2639.2,0.8181]
[1729241757662,3.78852,2639.6,2639.5,0.04738636]
[1729241757843,3.78852,2639.6,2639.2,0.8181]
[1729241758054,3.78852,2639.6,2639.5,0.04738636]
[1729241758258,3.78852,2639.6,2639.2,0.8181]
[1729241758476,3.78852,2639.6,2639.5,0.04738636]
[1729241758793,3.78852,2639.6,2639.2,0.8181]
[1729241759274,3.78852,2639.6,2639.3,0.04769361]
[1729241759476,3.78852,2639.6,2639.2,0.8181]
[1729241759637,3.78852,2639.6,2639.4,0.04761173]
[1729241759836,3.78852,2639.6,2639.2,0.8181]
[1729241760179,3.78852,2639.6,2639.5,0.04752986]
[1729241760338,3.78831,2639.7,2639.2,4.60711]
[1729241760540,3.78831,2639.7,2639.5,0.04752986]
[1729241760850,3.78831,2639.7,2639.6,0.04744799]
[1729241761372,3.78826,2639.8,2639.3,4.6063]
[1729241761579,3.78826,2639.8,2639.6,0.04744799]
[1729241761748,3.78826,2639.8,2639.4,3.78872]
[1729241761952,7.57596,2640.0,2639.7,0.04736613]
[1729241762167,7.57596,2640.0,2639.4,3.78865]
[1729241762678,7.57596,2640.0,2639.5,0.04752986]
[1729241762868,3.78802,2639.9,2639.5,0.04752986]
[1729241763437,3.78798,2640.0,2639.5,3.83602986]
[1729241763643,3.78798,2640.0,2639.6,0.8175]
[1729241763844,3.78798,2640.0,2639.6,0.86494799]
[1729241764733,0.8776,2640.1,2639.6,0.86494799]
[1729241764734,3.78773,2640.1,2639.6,0.86494799]
[1729241765263,3.78773,2640.1,2639.6,4.65337799]
[1729241765754,7.57559,2640.1,2639.6,4.65337799]
[1729241765951,3.78788,2640.0,2639.6,4.65337799]
[1729241767801,7.57538,2640.2,2639.7,3.78829]
[1729241768107,3.78768,2640.2,2639.8,0.86478427]
[1729241771091,3.78745,2640.3,2639.8,4.65290427]
[1729241771394,3.78723,2640.5,2640.0,0.8175]
[1729241771896,3.78723,2640.5,2640.1,0.04681327]
[1729241772087,3.78723,2640.5,2640.1,3.83453327]
[1729241772287,0.8529,2640.9,2640.2,0.8175]
[1729241772493,3.78694,2640.7,2640.2,4.65179144]
[1729241772785,0.8529,2640.9,2640.2,4.65179144]
[1729241772786,3.78673,2640.8,2640.3,3.78742]
[1729241772971,3.78673,2640.8,2640.4,0.8175]
[1729241773167,3.78673,2640.8,2640.4,0.86400047]
[1729241773864,7.57358,2640.8,2640.4,0.86400047]
[1729241774304,3.78687,2640.7,2640.4,0.86400047]
[1729241777477,3.78673,2640.8,2640.4,0.86400047]
[1729241777997,7.57356,2640.8,2640.4,0.86400047]
[1729241778560,3.78661,2640.9,2640.4,0.86400047]
[1729241778761,3.78654,2641.0,2640.5,3.78708]
[1729241779168,3.78652,2641.0,2640.6,0.04622563]
[1729241780622,7.57307,2641.0,2640.6,0.04622563]
[1729241781219,3.78652,2641.0,2640.6,0.04622563]
[1729241781377,3.78659,2640.9,2640.6,0.04622563]
[1729241782012,3.78658,2640.9,2640.6,0.04622563]
[1729241782322,3.78658,2640.9,2640.7,0.0459331]
[1729241782816,3.78658,2640.9,2640.4,4.60478]
[1729241783018,3.78658,2640.9,2640.8,0.04585131]
[1729241783505,3.78658,2640.9,2640.4,4.60478]
[1729241783853,3.78658,2640.9,2640.8,0.04585131]
[1729241784018,3.78658,2640.9,2640.4,4.60478]
[1729241784224,3.78658,2640.9,2640.5,0.04609671]
[1729241795852,3.78677,2640.8,2640.5,0.04609671]
[1729241796517,3.78673,2640.8,2640.5,0.04609671]
[1729241800170,3.78644,2641.0,2640.5,0.04609671]
[1729241800467,3.78659,2640.9,2640.5,0.04609671]
[1729241803451,3.78675,2640.8,2640.5,0.04609671]
[1729241805945,3.78644,2641.0,2640.5,0.04609671]
[1729241806162,3.78659,2640.9,2640.5,0.04609671]
[1729241806610,3.78676,2640.8,2640.5,0.04609671]
[1729241807284,4.6845,2641.1,2640.5,0.04609671]
[1729241807486,3.7866,2640.9,2640.5,0.04609671]
[1729241810512,3.78679,2640.8,2640.5,0.04609671]
[1729241810711,3.7866,2640.9,2640.5,0.04609671]
[1729241810914,3.78675,2640.8,2640.5,0.04609671]
[1729241811112,3.78675,2640.8,2640.5,1.0292331]
[1729241811278,3.7866,2640.9,2640.5,1.0292331]
[1729241811478,3.7866,2640.9,2640.5,1.02946531]
[1729241812897,3.78687,2640.7,2640.5,0.04609671]
[1729241813106,4.66031,2640.6,2640.5,0.04609671]
[1729241813709,3.78763,2640.2,2640.0,0.98431525]
[1729241813918,3.78773,2640.1,2639.8,0.79289927]
[1729241814176,3.78796,2640.0,2639.9,0.98445823]
[1729241814380,3.78796,2640.0,2639.7,0.84974081]
[1729241814577,3.78773,2640.1,2639.8,0.98471456]
[1729241814737,3.78789,2640.0,2639.7,0.84974081]
[1729241814941,3.78789,2640.0,2639.8,0.98478933]
[1729241815266,3.78789,2640.0,2639.8,0.98473044]
[1729241815781,3.78789,2640.0,2639.8,0.98472307]
[1729241816071,3.78789,2640.0,2639.7,0.84974081]
[1729241816278,3.78789,2640.0,2639.8,0.9846499]
[1729241816579,3.78789,2640.0,2639.7,0.84974081]
[1729241816782,3.78789,2640.0,2639.8,0.98464897]
[1729241818249,4.67029,2640.2,2639.8,0.98464897]
[1729241818452,3.7878,2640.1,2639.8,0.98464897]
[1729241818984,3.7878,2640.1,2639.8,0.98437273]
[1729241820081,3.7878,2640.1,2639.8,0.98415885]
[1729241820444,3.78781,2640.1,2639.7,1.04100039]
[1729241820774,3.78781,2640.1,2639.8,0.0450906]
[1729241820984,3.78789,2640.0,2639.7,1.83389966]
[1729241821282,3.78789,2640.0,2639.8,0.0450906]
[1729241821511,3.78789,2640.0,2639.7,1.04100039]
[1729241821787,3.78789,2640.0,2639.9,0.04500875]
[1729241822400,3.78789,2640.0,2639.7,1.04100039]
[1729241822540,3.78789,2640.0,2639.9,0.04500875]
[1729241822743,3.78789,2640.0,2639.7,0.05684154]
[1729241822982,3.78789,2640.0,2639.9,0.04500875]
[1729241823159,3.78789,2640.0,2639.8,0.0450906]
[1729241823369,3.78789,2640.0,2639.7,0.05684154]
[1729241823540,3.78789,2640.0,2639.9,0.04500875]
[1729241823745,3.78789,2640.0,2639.7,0.05684154]
[1729241823945,4.67029,2640.2,2639.9,0.04500875]
[1729241824154,4.67029,2640.2,2639.7,1.04100039]
[1729241824381,3.78773,2640.1,2640.0,0.04492691]
[1729241824550,3.78773,2640.1,2639.7,0.05684154]
[1729241824749,3.78773,2640.1,2640.0,0.04492691]
[1729241824975,3.78773,2640.1,2639.7,0.05684154]
[1729241825153,3.78773,2640.1,2640.0,0.04492691]
[1729241825359,3.78773,2640.1,2639.7,0.05684154]
[1729241825558,3.78773,2640.1,2640.0,0.04492691]
[1729241825799,3.78773,2640.1,2639.7,0.05684154]
[1729241826024,3.78773,2640.1,2640.0,0.04492691]
[1729241826521,3.78788,2640.0,2639.7,0.05684154]
[1729241826792,3.78788,2640.0,2639.7,1.04100039]
[1729241827168,3.78788,2640.0,2639.7,1.0399413]
[1729241827587,3.78788,2640.0,2639.7,0.05684154]
[1729241827788,3.78779,2640.1,2639.7,0.05684154]
[1729241827968,3.78788,2640.0,2639.7,0.05684154]
[1729241829122,3.78774,2640.1,2639.7,0.05684154]
[1729241832128,8.45799,2640.2,2639.7,0.05684154]
[1729241832430,8.45799,2640.2,2639.7,1.03965118]
[1729241832613,3.78773,2640.1,2639.7,0.05684154]
[1729241835595,3.78773,2640.1,2639.7,1.03965118]
[1729241835791,3.78773,2640.1,2639.8,0.04550539]
[1729241836339,0.8827,2640.2,2639.9,0.04542354]
[1729241836340,3.78789,2640.0,2639.9,0.04542354]
[1729241836508,3.78789,2640.0,2639.7,0.05684154]
[1729241836730,3.78774,2640.1,2639.9,0.04542354]
[1729241837052,3.78774,2640.1,2639.7,0.05684154]
[1729241837260,3.78774,2640.1,2640.0,0.04534169]
[1729241837421,4.67029,2640.2,2639.7,0.05684154]
[1729241837422,3.78799,2640.0,2639.7,0.05684154]
[1729241837617,3.78803,2639.9,2639.7,0.05684154]
[1729241838744,7.576,2640.0,2639.7,0.05684154]
[1729241839354,3.78799,2640.0,2639.7,0.05684154]
[1729241840433,7.57594,2640.0,2639.7,0.05684154]
[1729241840646,3.78795,2640.0,2639.7,0.05684154]
[1729241844149,4.67038,2640.2,2639.7,0.05684154]
[1729241844150,3.78774,2640.1,2639.7,0.05684154]
[1729241847187,3.78774,2640.1,2639.7,1.04042428]
[1729241847481,3.78792,2640.0,2639.7,0.05684154]
[1729241848559,3.78774,2640.1,2639.7,1.04042428]
[1729241850386,3.78774,2640.1,2639.7,1.83332355]
[1729241850757,3.78774,2640.1,2639.8,0.04551709]
[1729241851256,3.78774,2640.1,2639.8,0.9844584]
[1729241851476,3.78787,2640.0,2639.9,0.04543524]
[1729241851904,3.78774,2640.1,2639.7,1.04129994]
[1729241852110,3.78802,2639.9,2639.7,1.04129994]
[1729241852423,3.78774,2640.1,2639.7,1.04129994]
[1729241852734,3.78789,2640.0,2639.8,0.9844584]
[1729241853992,3.78789,2640.0,2639.9,0.04546737]
[1729241854519,3.78789,2640.0,2639.8,0.9853162]
[1729241854724,3.78774,2640.1,2639.9,0.04546737]
[1729241855021,7.57558,2640.1,2639.9,0.04546737]
[1729241855230,3.7879,2640.0,2639.8,0.79289927]
[1729241855520,3.7879,2640.0,2639.9,0.98558501]
[1729241856023,3.7879,2640.0,2639.9,0.98560248]
[1729241857138,3.7879,2640.0,2639.9,1.77850175]
[1729241857913,3.7879,2640.0,2639.9,0.98560248]
[1729241858297,3.78759,2640.2,2639.9,3.49078808]
[1729241858524,3.78759,2640.2,2640.0,1.78124272]
[1729241858696,3.78759,2640.2,2640.1,0.98560248]
[1729241860693,3.78759,2640.2,2640.1,0.98731161]
[1729241861406,3.78759,2640.2,2640.1,1.0326153]
[1729241863497,5.526245,2640.2,2640.1,1.0326153]
[1729241863694,5.526245,2640.2,2640.1,0.04530369]
[1729241863889,3.78787,2640.0,2639.9,0.79564024]
[1729241864096,3.78787,2640.0,2639.9,1.82703913]
[1729241865464,3.78787,2640.0,2639.9,1.82694504]
[1729241866353,4.68239,2640.2,2639.9,1.82694504]
[1729241866663,3.78773,2640.1,2640.0,1.78290282]
[1729241866949,3.78773,2640.1,2640.0,1.8268632]
[1729241868335,7.57526,2640.2,2640.0,1.8268632]
[1729241868545,7.57526,2640.2,2640.1,0.98726258]
[1729241868715,3.7872,2640.5,2640.1,0.98726258]
[1729241869052,3.78739,2640.4,2640.3,0.79572564]
[1729241869272,3.78739,2640.4,2640.3,1.78298822]
[1729241869456,3.78739,2640.4,2640.3,1.82674401]
[1729241869666,5.390149,2640.4,2640.3,0.04375579]
[1729241870018,3.78787,2640.0,2639.9,0.79572564]
[1729241870219,3.78787,2640.0,2639.9,1.78282777]
[1729241870460,3.78787,2640.0,2639.9,1.82687291]
[1729241871360,4.65687,2640.0,2639.9,1.03114727]
[1729241872783,3.78787,2640.0,2639.9,1.03114727]
[1729241875052,3.78773,2640.1,2639.9,1.03114727]
[1729241875053,3.78773,2640.1,2640.0,0.8186]
[1729241875391,3.78773,2640.1,2640.0,1.84978814]
[1729241875851,3.78773,2640.1,2640.0,2.64551378]
[1729241879400,3.78773,2640.1,2640.0,2.64501107]
[1729241880161,3.78773,2640.1,2640.0,1.65841165]
[1729241880364,3.78773,2640.1,2640.0,2.6450046]
[1729241880993,3.78773,2640.1,2640.0,1.8264046]
[1729241887723,3.78773,2640.1,2640.0,1.82625975]
[1729241889513,3.78755,2640.3,2640.0,1.82625975]
[1729241889717,3.78755,2640.3,2640.1,1.78217374]
[1729241889879,3.78755,2640.3,2640.2,1.03031493]
[1729241890716,3.78731,2640.4,2640.2,1.03031493]
[1729241890901,0.8476,2640.5,2640.2,0.04386683]
[1729241891219,3.0,2640.9,2640.2,0.04386683]
[1729241891220,3.78732,2640.4,2640.3,0.98559249]
[1729241891521,3.78732,2640.4,2640.3,1.02937749]
[1729241892426,3.78732,2640.4,2640.3,1.02935789]
[1729241894215,3.78732,2640.4,2640.3,0.043785]
[1729241894400,3.78732,2640.4,2640.2,0.8186]
[1729241894604,3.78732,2640.4,2640.3,0.043785]
[1729241894883,3.78732,2640.4,2640.2,0.8186]
[1729241895110,3.78732,2640.4,2640.3,0.043785]
[1729241895310,3.78732,2640.4,2640.2,0.8186]
[1729241895497,3.78712,2640.6,2640.3,0.043785]
[1729241895701,3.78724,2640.5,2640.2,0.8186]
[1729241895894,3.78712,2640.6,2640.3,0.0437295]
[1729241896097,3.78709,2640.6,2640.2,1.61432564]
[1729241896334,3.78682,2640.8,2640.2,1.61432564]
[1729241896335,3.78682,2640.8,2640.3,1.82471383]
[1729241896548,3.78659,2640.9,2640.5,0.8186]
[1729241896723,3.78659,2640.9,2640.5,4.60575]
[1729241896902,3.78659,2640.9,2640.6,0.98470732]
[1729241897086,3.78659,2640.9,2640.6,0.04338472]
[1729241897398,3.78655,2641.0,2640.6,0.04338472]
[1729241898430,3.78656,2641.0,2640.6,1.02738575]
[1729241898788,3.78632,2641.1,2640.6,1.02738575]
[1729241899036,3.7866,2640.9,2640.6,1.02738575]
[1729241899392,3.7866,2640.9,2640.6,0.04338472]
[1729241900828,7.57326,2640.9,2640.6,0.04338472]
[1729241901251,3.7866,2640.9,2640.6,0.04338472]
[1729241908249,7.57329,2640.9,2640.6,0.04338472]
[1729241908976,3.7866,2640.9,2640.6,0.04338472]
[1729241911838,3.78687,2640.7,2640.6,0.04338472]
[1729241912054,3.78756,2640.3,2640.1,2.59547235]
[1729241912277,3.78756,2640.3,2639.7,5.37405854]
[1729241912448,3.78759,2640.2,2639.7,3.78826]
[1729241912850,3.78759,2640.2,2639.6,3.8451634]
[1729241913581,3.78759,2640.2,2639.7,3.86401863]
[1729241913786,7.57509,2640.3,2639.7,3.86401863]
[1729241913945,3.78753,2640.3,2639.8,3.78813]
[1729241914495,3.78753,2640.3,2639.7,3.07575863]
[1729241914661,3.78753,2640.3,2639.7,6.86395863]
[1729241914976,3.78763,2640.2,2639.7,6.86395863]
[1729241915358,3.78763,2640.2,2639.7,3.0]
[1729241915945,3.78763,2640.2,2639.7,6.86401861]
[1729241917173,7.5751,2640.3,2639.7,6.86401861]
[1729241917679,3.7876,2640.2,2639.7,6.86401861]
[1729241918243,3.78753,2640.3,2639.8,3.78808]
[1729241918779,3.78753,2640.3,2639.8,3.86383342]
[1729241918945,3.78753,2640.3,2639.8,3.78808]
[1729241919344,3.78753,2640.3,2639.8,3.86383342]
[1729241919769,3.78753,2640.3,2639.8,3.78808]
[1729241919970,3.78753,2640.3,2639.8,3.86383342]
[1729241921280,3.78753,2640.3,2639.8,5.05322955]
[1729241921453,3.78753,2640.3,2639.8,4.97747613]
[1729241921657,3.78753,2640.3,2639.8,5.05322955]
[1729241922476,3.78753,2640.3,2640.0,0.79302681]
[1729241922706,3.78753,2640.3,2640.1,0.98360106]
[1729241925179,3.78759,2640.2,2640.1,0.98360106]
[1729241925383,4.66149,2640.3,2640.1,0.98360106]
[1729241925681,4.66149,2640.3,2640.1,0.98383366]
[1729241925981,4.66149,2640.3,2640.2,0.04350459]
[1729241926947,4.66149,2640.3,2640.0,0.98382799]
[1729241927148,3.78761,2640.2,2640.1,0.04358642]
[1729241927378,3.78761,2640.2,2640.0,0.98381875]
[1729241927685,4.66145,2640.3,2640.1,0.04357182]
[1729241928059,4.66145,2640.3,2640.1,0.98388255]
[1729241928257,4.66145,2640.3,2640.2,0.04348999]
[1729241928471,4.66145,2640.3,2639.9,0.79302681]
[1729241928685,4.66145,2640.3,2640.2,0.04348999]
[1729241928886,4.66145,2640.3,2639.9,0.79302681]
[1729241929057,4.66145,2640.3,2640.2,0.04348999]
[1729241929882,4.66145,2640.3,2640.1,0.98379296]
[1729241930095,4.66145,2640.3,2640.2,0.04348999]
[1729241930755,5.506329,2640.3,2640.1,0.98385592]
[1729241931050,3.78775,2640.1,2640.0,0.98385592]
[1729241931855,0.8738,2640.0,2639.8,0.98385592]
[1729241932051,0.8738,2640.0,2639.7,0.98440472]
[1729241932283,4.66168,2640.0,2639.6,0.84987021]
[1729241932486,4.63731,2640.2,2639.7,5.5657012]
[1729241932691,4.63731,2640.2,2639.8,0.98446439]
[1729241932876,3.78773,2640.1,2639.8,0.98446439]
[1729241933084,3.78773,2640.1,2639.6,0.84987021]
[1729241933269,3.78773,2640.1,2639.7,0.98432061]
[1729241933467,3.78773,2640.1,2639.7,0.98428551]
[1729241933670,3.78773,2640.1,2639.6,0.84987021]
[1729241933671,7.57555,2640.1,2639.6,0.84987021]
[1729241933982,7.57555,2640.1,2639.7,0.98425266]
[1729241934571,3.78773,2640.1,2639.7,0.98425266]
[1729241934799,3.78773,2640.1,2639.7,0.9842261]
[1729241935004,3.7883,2639.7,2639.6,0.0568434]
[1729241935289,3.78827,2639.8,2639.5,1.2975507]
[1729241935494,3.78827,2639.8,2639.6,0.9843507]
[1729241936465,3.78827,2639.8,2639.5,0.3132]
[1729241936672,3.78827,2639.8,2639.5,1.2975507]
[1729241937082,0.8625,2640.0,2639.5,5.87915751]
[1729241937272,4.65038,2640.0,2639.6,0.9843507]
[1729241937480,4.65038,2640.0,2639.5,5.87915751]
[1729241937686,4.65038,2640.0,2639.6,0.9843507]
[1729241937886,4.65038,2640.0,2639.5,4.89480681]
[1729241938195,4.65038,2640.0,2639.5,5.87915751]
[1729241938405,4.65038,2640.0,2639.6,0.9843507]
[1729241938558,4.65038,2640.0,2639.5,4.89480681]
[1729241938763,4.65038,2640.0,2639.5,5.87915751]
[1729241938964,4.65038,2640.0,2639.6,0.9843507]
[1729241939670,8.43833,2640.0,2639.5,5.87915751]
[1729241939873,8.43833,2640.0,2639.5,4.89480681]
[1729241940177,4.65038,2640.0,2639.5,5.87830051]
[1729241940482,0.8625,2640.0,2639.6,4.77187706]
[1729241940684,3.78775,2640.1,2639.6,5.56490387]
[1729241940870,3.78775,2640.1,2639.7,0.04422343]
[1729241941598,3.78768,2640.2,2639.7,0.04422343]